[Event "Live Chess"]
[Site "Chess.com"]
[Date "2023.05.20"]
[Round "-"]
[White "jennybobby44"]
[Black "OSmith06"]
[Result "1/2-1/2"]
[WhiteElo "1863"]
[BlackElo "1664"]
[TimeControl "300"]
[EndTime "12:59:55 PDT"]
[Termination "Game drawn by stalemate"]

1. Nf3 {[%clk 0:04:59.2]} 1... Nf6 {[%clk 0:04:58.5]} 2. g3 {[%clk 0:04:56.8]}
2... e6 {[%clk 0:04:57.3]} 3. Bg2 {[%clk 0:04:56]} 3... d5 {[%clk 0:04:57.2]} 4.
d4 {[%clk 0:04:55.4]} 4... c5 {[%clk 0:04:56.7]} 5. c3 {[%clk 0:04:54.7]} 5...
Nc6 {[%clk 0:04:54.6]} 6. O-O {[%clk 0:04:54.2]} 6... Be7 {[%clk 0:04:52.9]} 7.
b3 {[%clk 0:04:49.2]} 7... O-O {[%clk 0:04:46]} 8. Bb2 {[%clk 0:04:48.3]} 8...
cxd4 {[%clk 0:04:40.8]} 9. cxd4 {[%clk 0:04:47]} 9... a6 {[%clk 0:04:39.5]} 10.
Nbd2 {[%clk 0:04:44.5]} 10... b5 {[%clk 0:04:36.1]} 11. e3 {[%clk 0:04:42.1]}
11... Bb7 {[%clk 0:04:34.9]} 12. Rc1 {[%clk 0:04:41]} 12... Rc8 {[%clk
0:04:34.1]} 13. h3 {[%clk 0:04:39.5]} 13... Nb4 {[%clk 0:04:30.7]} 14. a3 {[%clk
0:04:30.5]} 14... Rxc1 {[%clk 0:04:21.2]} 15. Qxc1 {[%clk 0:04:28.5]} 15... Nd3
{[%clk 0:04:19.7]} 16. Qb1 {[%clk 0:04:28]} 16... Nxb2 {[%clk 0:04:15.2]} 17.
Qxb2 {[%clk 0:04:27.9]} 17... Qa5 {[%clk 0:04:10.3]} 18. b4 {[%clk 0:04:26]}
18... Qb6 {[%clk 0:03:59]} 19. Rc1 {[%clk 0:04:24.3]} 19... a5 {[%clk
0:03:52.3]} 20. Ne5 {[%clk 0:04:22.8]} 20... axb4 {[%clk 0:03:46.8]} 21. axb4
{[%clk 0:04:22.7]} 21... Qd6 {[%clk 0:03:37.7]} 22. Nd3 {[%clk 0:04:18.1]} 22...
Rc8 {[%clk 0:03:23.1]} 23. Nc5 {[%clk 0:04:17.4]} 23... Qb6 {[%clk 0:03:14.5]}
24. Bf1 {[%clk 0:04:12.1]} 24... Bxc5 {[%clk 0:03:03.8]} 25. bxc5 {[%clk
0:04:05.5]} 25... Qc7 {[%clk 0:02:57.6]} 26. Qxb5 {[%clk 0:04:04.7]} 26... Bc6
{[%clk 0:02:54.4]} 27. Qb6 {[%clk 0:04:02.2]} 27... Qe7 {[%clk 0:02:42]} 28. Ba6
{[%clk 0:03:58.1]} 28... Nd7 {[%clk 0:02:37.4]} 29. Qa7 {[%clk 0:03:51.1]} 29...
Ra8 {[%clk 0:02:33.5]} 30. Qxa8+ {[%clk 0:03:38]} 30... Bxa8 {[%clk 0:02:32.1]}
31. c6 {[%clk 0:03:37.3]} 31... Nb6 {[%clk 0:02:18.3]} 32. Rb1 {[%clk
0:03:14.6]} 32... Qc7 {[%clk 0:01:53.1]} 33. Nf3 {[%clk 0:03:06.5]} 33... Bxc6
{[%clk 0:01:50.3]} 34. Rc1 {[%clk 0:03:03]} 34... Qd6 {[%clk 0:01:47.6]} 35. Ne5
{[%clk 0:02:58.5]} 35... Nc4 {[%clk 0:01:40.4]} 36. Bxc4 {[%clk 0:02:55.8]}
36... dxc4 {[%clk 0:01:40.3]} 37. Rxc4 {[%clk 0:02:55]} 37... Bb7 {[%clk
0:01:26]} 38. Rc5 {[%clk 0:02:46.4]} 38... f6 {[%clk 0:01:19.5]} 39. Nd3 {[%clk
0:02:42.3]} 39... Be4 {[%clk 0:01:16]} 40. Ne1 {[%clk 0:02:30.1]} 40... Qb6
{[%clk 0:01:11.5]} 41. f3 {[%clk 0:02:09]} 41... Qb1 {[%clk 0:01:06.2]} 42. Kf2
{[%clk 0:02:01.1]} 42... Qb2+ {[%clk 0:00:58.8]} 43. Kf1 {[%clk 0:01:57.4]}
43... Bg6 {[%clk 0:00:53.8]} 44. Rc8+ {[%clk 0:01:50.8]} 44... Kf7 {[%clk
0:00:52.1]} 45. Rc7+ {[%clk 0:01:48.1]} 45... Kf8 {[%clk 0:00:51.3]} 46. Rc8+
{[%clk 0:01:46.5]} 46... Be8 {[%clk 0:00:50.7]} 47. Rc2 {[%clk 0:01:42.2]} 47...
Qb5+ {[%clk 0:00:49]} 48. Kf2 {[%clk 0:01:39.5]} 48... Qb3 {[%clk 0:00:46.4]}
49. h4 {[%clk 0:01:37.3]} 49... Ba4 {[%clk 0:00:44.2]} 50. Rd2 {[%clk
0:01:30.9]} 50... e5 {[%clk 0:00:42.6]} 51. dxe5 {[%clk 0:01:29.8]} 51... fxe5
{[%clk 0:00:42.5]} 52. Re2 {[%clk 0:01:25.2]} 52... Bb5 {[%clk 0:00:40.6]} 53.
Rd2 {[%clk 0:01:24.6]} 53... Qc3 {[%clk 0:00:36.3]} 54. Rd1 {[%clk 0:01:07.5]}
54... Qc4 {[%clk 0:00:33.1]} 55. Nd3 {[%clk 0:01:02.8]} 55... Qxd3 {[%clk
0:00:31.5]} 56. Rxd3 {[%clk 0:01:02.1]} 56... Bxd3 {[%clk 0:00:31.4]} 57. e4
{[%clk 0:01:01.2]} 57... Ke7 {[%clk 0:00:29.9]} 58. Ke3 {[%clk 0:01:00.7]} 58...
Bc4 {[%clk 0:00:29.5]} 59. f4 {[%clk 0:00:59.5]} 59... exf4+ {[%clk 0:00:28.2]}
60. Kxf4 {[%clk 0:00:59.4]} 60... Be6 {[%clk 0:00:27.6]} 61. Kg5 {[%clk
0:00:58.2]} 61... Kf7 {[%clk 0:00:27]} 62. Kf4 {[%clk 0:00:57.4]} 62... h6
{[%clk 0:00:25.9]} 63. Ke5 {[%clk 0:00:56.3]} 63... Bc8 {[%clk 0:00:24.6]} 64.
Kd6 {[%clk 0:00:55.1]} 64... Bg4 {[%clk 0:00:23.6]} 65. Ke5 {[%clk 0:00:54.6]}
65... Kg6 {[%clk 0:00:23]} 66. Kf4 {[%clk 0:00:53.8]} 66... h5 {[%clk
0:00:21.2]} 67. Ke5 {[%clk 0:00:53.1]} 67... Kf7 {[%clk 0:00:20]} 68. Kd6 {[%clk
0:00:50.9]} 68... Kf6 {[%clk 0:00:19.3]} 69. e5+ {[%clk 0:00:50.2]} 69... Kf7
{[%clk 0:00:17.8]} 70. Kd5 {[%clk 0:00:49.3]} 70... g6 {[%clk 0:00:17]} 71. Ke4
{[%clk 0:00:48.2]} 71... Ke6 {[%clk 0:00:16]} 72. Kf4 {[%clk 0:00:47.9]} 72...
Bf5 {[%clk 0:00:15.4]} 73. Kg5 {[%clk 0:00:45.8]} 73... Kxe5 {[%clk 0:00:15.1]}
74. Kh6 {[%clk 0:00:45.2]} 74... Ke4 {[%clk 0:00:14.8]} 75. Kg5 {[%clk
0:00:44.6]} 75... Kf3 {[%clk 0:00:14.7]} 76. Kf6 {[%clk 0:00:43.9]} 76... Kxg3
{[%clk 0:00:14.4]} 77. Kg5 {[%clk 0:00:43.8]} 77... Kh3 {[%clk 0:00:13.4]} 78.
Kf4 {[%clk 0:00:43]} 78... Kxh4 {[%clk 0:00:13.3]} 79. Kf3 {[%clk 0:00:42.7]}
79... Kg5 {[%clk 0:00:12.9]} 80. Kg2 {[%clk 0:00:42.6]} 80... h4 {[%clk
0:00:12.8]} 81. Kh2 {[%clk 0:00:42.3]} 81... h3 {[%clk 0:00:12.4]} 82. Kg3
{[%clk 0:00:41.7]} 82... Kh5 {[%clk 0:00:11.7]} 83. Kh2 {[%clk 0:00:40.9]} 83...
g5 {[%clk 0:00:11.6]} 84. Kg3 {[%clk 0:00:40.5]} 84... g4 {[%clk 0:00:11.5]} 85.
Kh2 {[%clk 0:00:40.4]} 85... Kh4 {[%clk 0:00:10.1]} 86. Kg1 {[%clk 0:00:40.3]}
86... g3 {[%clk 0:00:09.6]} 87. Kh1 {[%clk 0:00:39.7]} 87... Kg4 {[%clk
0:00:09.5]} 88. Kg1 {[%clk 0:00:39.2]} 88... Bc8 {[%clk 0:00:09.4]} 89. Kh1
{[%clk 0:00:38.4]} 89... g2+ {[%clk 0:00:08]} 90. Kg1 {[%clk 0:00:37.7]} 90...
Kf3 {[%clk 0:00:06.9]} 91. Kh2 {[%clk 0:00:36.1]} 91... Kf2 {[%clk 0:00:06.8]}
1/2-1/2

[Event "Live Chess"]
[Site "Chess.com"]
[Date "2023.05.20"]
[Round "-"]
[White "DerbyKnight"]
[Black "Enhard"]
[Result "0-1"]
[WhiteElo "1540"]
[BlackElo "1463"]
[TimeControl "300"]
[EndTime "12:59:56 PDT"]
[Termination "Enhard won on time"]

1. e4 {[%clk 0:04:56.2]} 1... c6 {[%clk 0:04:58.2]} 2. d4 {[%clk 0:04:54.7]}
2... d5 {[%clk 0:04:57.6]} 3. Nc3 {[%clk 0:04:53.6]} 3... dxe4 {[%clk
0:04:56.5]} 4. Nxe4 {[%clk 0:04:51.6]} 4... Bf5 {[%clk 0:04:55.6]} 5. Ng3 {[%clk
0:04:46.6]} 5... Bg6 {[%clk 0:04:54]} 6. N1e2 {[%clk 0:04:46.2]} 6... Nd7 {[%clk
0:04:52.7]} 7. Nf4 {[%clk 0:04:44.4]} 7... e6 {[%clk 0:04:33.8]} 8. h4 {[%clk
0:04:41]} 8... Bf5 {[%clk 0:04:27.9]} 9. Nxf5 {[%clk 0:04:24]} 9... Qa5+ {[%clk
0:04:26.4]} 10. Bd2 {[%clk 0:04:16.2]} 10... Qxf5 {[%clk 0:04:25.3]} 11. Bd3
{[%clk 0:04:14.2]} 11... Qf6 {[%clk 0:04:14.1]} 12. Nh5 {[%clk 0:03:59.3]} 12...
Qe7 {[%clk 0:03:59.7]} 13. Bf4 {[%clk 0:03:46]} 13... Ngf6 {[%clk 0:03:55.4]}
14. Nxf6+ {[%clk 0:03:40]} 14... Nxf6 {[%clk 0:03:52.7]} 15. Qe2 {[%clk
0:03:32]} 15... Qd7 {[%clk 0:03:50]} 16. O-O-O {[%clk 0:03:27.8]} 16... Be7
{[%clk 0:03:46.4]} 17. g4 {[%clk 0:03:11.3]} 17... Nd5 {[%clk 0:03:44.5]} 18.
Bg3 {[%clk 0:03:04.7]} 18... Bd6 {[%clk 0:03:43]} 19. Be5 {[%clk 0:02:57.2]}
19... f6 {[%clk 0:03:36.3]} 20. Bxd6 {[%clk 0:02:49.7]} 20... Qxd6 {[%clk
0:03:34.4]} 21. Kb1 {[%clk 0:02:47.9]} 21... O-O-O {[%clk 0:03:31.5]} 22. Bc4
{[%clk 0:02:36.1]} 22... Rhe8 {[%clk 0:03:25.8]} 23. Qf3 {[%clk 0:02:25.2]}
23... h6 {[%clk 0:03:10.1]} 24. Rhe1 {[%clk 0:02:24.5]} 24... Qb4 {[%clk
0:03:06.8]} 25. Bb3 {[%clk 0:02:16.6]} 25... Qa5 {[%clk 0:02:49.5]} 26. g5
{[%clk 0:02:00.5]} 26... hxg5 {[%clk 0:02:43.8]} 27. hxg5 {[%clk 0:01:58.1]}
27... Kb8 {[%clk 0:02:35.6]} 28. Qg3+ {[%clk 0:01:54.3]} 28... Ka8 {[%clk
0:02:32.7]} 29. gxf6 {[%clk 0:01:52.3]} 29... gxf6 {[%clk 0:02:31.4]} 30. Rh1
{[%clk 0:01:43.4]} 30... Nb4 {[%clk 0:02:19.6]} 31. Rh7 {[%clk 0:01:33.4]} 31...
Nd5 {[%clk 0:01:56.9]} 32. Bxd5 {[%clk 0:01:23.7]} 32... exd5 {[%clk 0:01:49.4]}
33. Qg7 {[%clk 0:01:19.6]} 33... Rb8 {[%clk 0:01:43.4]} 34. Qxf6 {[%clk
0:01:13.6]} 34... Re1 {[%clk 0:01:41.8]} 35. Rh1 {[%clk 0:00:58]} 35... Rxd1+
{[%clk 0:01:24]} 36. Rxd1 {[%clk 0:00:55.9]} 36... Qb4 {[%clk 0:01:22.9]} 37. c3
{[%clk 0:00:51.1]} 37... Qc4 {[%clk 0:01:17.5]} 38. Qe5 {[%clk 0:00:45]} 38...
Qa4 {[%clk 0:01:08.7]} 39. Qe2 {[%clk 0:00:39.2]} 39... Qa5 {[%clk 0:01:04.4]}
40. Re1 {[%clk 0:00:36.4]} 40... a6 {[%clk 0:01:00]} 41. f4 {[%clk 0:00:34.4]}
41... Rf8 {[%clk 0:00:56.6]} 42. Qe3 {[%clk 0:00:28.8]} 42... Qc7 {[%clk
0:00:54.5]} 43. Rf1 {[%clk 0:00:26.2]} 43... Qh7+ {[%clk 0:00:49.8]} 44. Kc1
{[%clk 0:00:23]} 44... Qf5 {[%clk 0:00:41.4]} 45. Qe5 {[%clk 0:00:18.8]} 45...
Qh3 {[%clk 0:00:35.3]} 46. Re1 {[%clk 0:00:15.2]} 46... Qf3 {[%clk 0:00:27.8]}
47. Qe2 {[%clk 0:00:02]} 47... Qxf4+ {[%clk 0:00:26.1]} 48. Kb1 {[%clk
0:00:00.5]} 48... Qf5+ {[%clk 0:00:22.7]} 49. Ka1 {[%clk 0:00:00.4]} 49... Ka7
{[%clk 0:00:18.7]} 50. Qe5 {[%clk 0:00:00.3]} 50... Qf2 {[%clk 0:00:16.2]} 51.
Qf5 {[%clk 0:00:00.2]} 51... Qxf5 {[%clk 0:00:15]} 0-1

[Event "Live Chess"]
[Site "Chess.com"]
[Date "2023.05.20"]
[Round "-"]
[White "seabuck"]
[Black "DenDenTie"]
[Result "1-0"]
[WhiteElo "1856"]
[BlackElo "689"]
[TimeControl "300"]
[EndTime "13:00:05 PDT"]
[Termination "seabuck won on time"]

1. c4 {[%clk 0:04:58.2]} 1... e5 {[%clk 0:04:56]} 2. Nc3 {[%clk 0:04:57.1]} 2...
Nf6 {[%clk 0:04:53.8]} 3. g3 {[%clk 0:04:56.1]} 3... d5 {[%clk 0:04:51.7]} 4.
cxd5 {[%clk 0:04:53.6]} 4... Nxd5 {[%clk 0:04:50.4]} 5. Bg2 {[%clk 0:04:52.6]}
5... Be6 {[%clk 0:04:47.8]} 6. Nf3 {[%clk 0:04:47.2]} 6... Nc6 {[%clk
0:04:43.1]} 7. O-O {[%clk 0:04:45.2]} 7... Bc5 {[%clk 0:04:41.2]} 8. a3 {[%clk
0:04:39.6]} 8... O-O {[%clk 0:04:39.4]} 9. b4 {[%clk 0:04:37.9]} 9... Bb6 {[%clk
0:04:37.5]} 10. Bb2 {[%clk 0:04:36.7]} 10... Nxc3 {[%clk 0:04:33.1]} 11. Bxc3
{[%clk 0:04:33.6]} 11... a5 {[%clk 0:04:28.5]} 12. Nxe5 {[%clk 0:04:24.7]} 12...
Nxe5 {[%clk 0:04:20.2]} 13. Bxe5 {[%clk 0:04:22.7]} 13... axb4 {[%clk
0:04:18.8]} 14. axb4 {[%clk 0:04:19.4]} 14... Rxa1 {[%clk 0:04:15.2]} 15. Bxa1
{[%clk 0:04:10.6]} 15... Qd6 {[%clk 0:04:09.6]} 16. Bc3 {[%clk 0:04:05.8]} 16...
Bd4 {[%clk 0:04:05.2]} 17. e3 {[%clk 0:03:54.8]} 17... Bxc3 {[%clk 0:04:01.7]}
18. dxc3 {[%clk 0:03:53.4]} 18... Qe5 {[%clk 0:03:52.7]} 19. Qd4 {[%clk
0:03:48.2]} 19... Qb5 {[%clk 0:03:33.6]} 20. Ra1 {[%clk 0:03:29.2]} 20... b6
{[%clk 0:03:21.3]} 21. Ra7 {[%clk 0:03:20.1]} 21... c5 {[%clk 0:03:17.7]} 22.
bxc5 {[%clk 0:03:09.7]} 22... bxc5 {[%clk 0:03:16.4]} 23. Qd1 {[%clk 0:02:57.8]}
23... Qb6 {[%clk 0:02:55.4]} 24. Rb7 {[%clk 0:02:54.4]} 24... Qa5 {[%clk
0:02:30.3]} 25. Qc1 {[%clk 0:02:41.4]} 25... Rd8 {[%clk 0:02:13.1]} 26. Bf3
{[%clk 0:02:31.1]} 26... Bc8 {[%clk 0:01:57.3]} 27. Rb2 {[%clk 0:02:22.3]} 27...
Qa4 {[%clk 0:01:50.1]} 28. Kg2 {[%clk 0:02:14.8]} 28... Bf5 {[%clk 0:01:21.2]}
29. Rd2 {[%clk 0:02:06.8]} 29... Rxd2 {[%clk 0:01:08.4]} 30. Qxd2 {[%clk
0:02:04]} 30... h6 {[%clk 0:01:05.9]} 31. Qd5 {[%clk 0:01:50.4]} 31... Be6
{[%clk 0:00:48.7]} 32. Qxc5 {[%clk 0:01:46.9]} 32... Qd7 {[%clk 0:00:45.4]} 33.
Qd4 {[%clk 0:01:39.2]} 33... Bh3+ {[%clk 0:00:35.9]} 34. Kg1 {[%clk 0:01:38.1]}
34... Qb5 {[%clk 0:00:28.2]} 35. Qd1 {[%clk 0:01:25]} 35... g5 {[%clk
0:00:17.1]} 36. Qd8+ {[%clk 0:01:12]} 36... Kg7 {[%clk 0:00:15.6]} 37. Qd4+
{[%clk 0:01:08.8]} 37... Kh7 {[%clk 0:00:13.9]} 38. Qd1 {[%clk 0:00:59.2]} 38...
h5 {[%clk 0:00:11]} 39. Bg2 {[%clk 0:00:55.2]} 39... Bg4 {[%clk 0:00:07.5]} 40.
f3 {[%clk 0:00:43.5]} 40... Bf5 {[%clk 0:00:05.6]} 41. Kf2 {[%clk 0:00:35.7]}
41... Qc5 {[%clk 0:00:03.7]} 42. Qd2 {[%clk 0:00:33.5]} 42... Be6 {[%clk
0:00:03.2]} 43. h4 {[%clk 0:00:31.1]} 43... Bd5 {[%clk 0:00:02.8]} 44. hxg5
{[%clk 0:00:28.3]} 44... f5 {[%clk 0:00:02.4]} 45. f4 {[%clk 0:00:22.2]} 45...
Kg7 {[%clk 0:00:01.9]} 46. Bxd5 {[%clk 0:00:20.5]} 46... Qc4 {[%clk 0:00:00.6]}
47. Bxc4 {[%clk 0:00:19.1]} 1-0

[Event "Live Chess"]
[Site "Chess.com"]
[Date "2023.05.20"]
[Round "-"]
[White "Woodpusher500"]
[Black "CheckThis4"]
[Result "0-1"]
[WhiteElo "1324"]
[BlackElo "2550"]
[TimeControl "300"]
[EndTime "13:00:09 PDT"]
[Termination "CheckThis4 won by resignation"]

1. e4 {[%clk 0:04:57.9]} 1... d5 {[%clk 0:04:57.5]} 2. exd5 {[%clk 0:04:54.2]}
2... Nf6 {[%clk 0:04:56.6]} 3. c4 {[%clk 0:04:43.3]} 3... e6 {[%clk 0:04:54.9]}
4. Qf3 {[%clk 0:04:31.6]} 4... exd5 {[%clk 0:04:52.2]} 5. cxd5 {[%clk
0:04:27.2]} 5... Nbd7 {[%clk 0:04:48.2]} 6. Bc4 {[%clk 0:04:20.6]} 6... Nb6
{[%clk 0:04:46.5]} 7. Bb3 {[%clk 0:04:09.7]} 7... Nbxd5 {[%clk 0:04:45.6]} 8.
Nc3 {[%clk 0:04:02.8]} 8... c6 {[%clk 0:04:41.7]} 9. Nxd5 {[%clk 0:03:46.6]}
9... cxd5 {[%clk 0:04:40.2]} 10. Ne2 {[%clk 0:03:36]} 10... Be6 {[%clk
0:04:38.8]} 11. Nf4 {[%clk 0:03:25]} 11... Bd6 {[%clk 0:04:36.7]} 12. O-O {[%clk
0:03:12.3]} 12... O-O {[%clk 0:04:33.8]} 13. Nxd5 {[%clk 0:02:59.3]} 13... Nxd5
{[%clk 0:04:31.4]} 14. Bxd5 {[%clk 0:02:56.9]} 14... Bxd5 {[%clk 0:04:31.3]} 15.
Qd3 {[%clk 0:02:43.2]} 15... Rc8 {[%clk 0:04:22.3]} 16. b3 {[%clk 0:02:37.1]}
16... Be5 {[%clk 0:04:17.1]} 17. Rb1 {[%clk 0:02:24.7]} 17... Qh4 {[%clk
0:04:15.2]} 18. h3 {[%clk 0:02:18.5]} 18... Be4 {[%clk 0:04:04.6]} 19. Qe3
{[%clk 0:02:08.9]} 19... Bxb1 {[%clk 0:04:00.7]} 20. Qxe5 {[%clk 0:02:06.5]}
20... Rfe8 {[%clk 0:03:59.5]} 21. Qd4 {[%clk 0:01:54.1]} 21... Qxd4 {[%clk
0:03:57]} 0-1

[Event "Live Chess"]
[Site "Chess.com"]
[Date "2023.05.20"]
[Round "-"]
[White "diana21strabt"]
[Black "Doge_Dandolo"]
[Result "1-0"]
[WhiteElo "1681"]
[BlackElo "2017"]
[TimeControl "300"]
[EndTime "13:00:10 PDT"]
[Termination "diana21strabt won by resignation"]

1. e4 {[%clk 0:04:57.6]} 1... c6 {[%clk 0:04:59]} 2. d4 {[%clk 0:04:56.3]} 2...
d5 {[%clk 0:04:58.4]} 3. Nc3 {[%clk 0:04:55.3]} 3... dxe4 {[%clk 0:04:57.4]} 4.
Nxe4 {[%clk 0:04:54.7]} 4... Bf5 {[%clk 0:04:56.9]} 5. Ng3 {[%clk 0:04:53.2]}
5... Bg6 {[%clk 0:04:56.3]} 6. h4 {[%clk 0:04:52.3]} 6... h6 {[%clk 0:04:55.3]}
7. h5 {[%clk 0:04:51.4]} 7... Bh7 {[%clk 0:04:54.5]} 8. Nf3 {[%clk 0:04:50.8]}
8... Nd7 {[%clk 0:04:53.5]} 9. Bd3 {[%clk 0:04:49.9]} 9... Bxd3 {[%clk
0:04:52.4]} 10. Qxd3 {[%clk 0:04:49.3]} 10... e6 {[%clk 0:04:51.6]} 11. Bf4
{[%clk 0:04:48.3]} 11... Qa5+ {[%clk 0:04:50.1]} 12. Bd2 {[%clk 0:04:46.8]}
12... Bb4 {[%clk 0:04:49.3]} 13. c3 {[%clk 0:04:39.1]} 13... Be7 {[%clk
0:04:47.9]} 14. Ne4 {[%clk 0:04:24.2]} 14... Ngf6 {[%clk 0:04:45]} 15. Nxf6+
{[%clk 0:04:23.2]} 15... Nxf6 {[%clk 0:04:42.9]} 16. Bf4 {[%clk 0:04:22.1]}
16... Nd5 {[%clk 0:04:37.6]} 17. Be5 {[%clk 0:04:19.3]} 17... O-O {[%clk
0:04:31.6]} 18. O-O {[%clk 0:04:15.3]} 18... c5 {[%clk 0:04:29.4]} 19. dxc5
{[%clk 0:04:11.2]} 19... Bxc5 {[%clk 0:04:24.8]} 20. b4 {[%clk 0:04:07.6]} 20...
Bxb4 {[%clk 0:04:22.9]} 21. cxb4 {[%clk 0:04:06.4]} 21... Nxb4 {[%clk
0:04:21.5]} 22. Qb3 {[%clk 0:04:01.3]} 22... Nc6 {[%clk 0:04:17.3]} 23. Bc3
{[%clk 0:03:58.1]} 23... Qxh5 {[%clk 0:04:14.9]} 24. Qxb7 {[%clk 0:03:47.9]}
24... Rfc8 {[%clk 0:04:13.1]} 25. Rac1 {[%clk 0:03:36.9]} 25... Rab8 {[%clk
0:04:11.6]} 26. Qd7 {[%clk 0:03:27.5]} 26... Qg4 {[%clk 0:03:55.6]} 27. Bxg7
{[%clk 0:03:21]} 27... Qxg7 {[%clk 0:03:53.5]} 28. Rxc6 {[%clk 0:03:18]} 28...
Rd8 {[%clk 0:03:51.3]} 29. Qxa7 {[%clk 0:03:14.1]} 29... Ra8 {[%clk 0:03:50.4]}
30. Qc7 {[%clk 0:03:07.4]} 30... Rd3 {[%clk 0:03:42.4]} 31. Qg3 {[%clk
0:02:54.8]} 31... Qxg3 {[%clk 0:03:38.9]} 32. fxg3 {[%clk 0:02:53.8]} 32... Rxa2
{[%clk 0:03:36.4]} 33. Rb1 {[%clk 0:02:46.5]} 33... Re3 {[%clk 0:03:28]} 34.
Rc8+ {[%clk 0:02:25.9]} 34... Kg7 {[%clk 0:03:24.6]} 35. Rc7 {[%clk 0:02:22.3]}
35... Ree2 {[%clk 0:03:21.1]} 36. Ne1 {[%clk 0:02:21]} 36... Rf2 {[%clk
0:03:10.4]} 37. Rcb7 {[%clk 0:02:14.2]} 37... Rf5 {[%clk 0:03:04.3]} 38. R7b2
{[%clk 0:02:12.1]} 38... Ra3 {[%clk 0:03:01.8]} 39. Rf2 {[%clk 0:02:09.8]} 39...
Re5 {[%clk 0:02:59.7]} 40. Rf3 {[%clk 0:02:05.4]} 40... Ra2 {[%clk 0:02:57]} 41.
Nd3 {[%clk 0:02:00.9]} 41... Rd5 {[%clk 0:02:50.3]} 42. Rbf1 {[%clk 0:01:58.9]}
42... Rd7 {[%clk 0:02:47.1]} 43. Ne5 {[%clk 0:01:56.7]} 43... Rb7 {[%clk
0:02:44.9]} 44. Rxf7+ {[%clk 0:01:55]} 44... Rxf7 {[%clk 0:02:43.3]} 45. Rxf7+
{[%clk 0:01:53.7]} 45... Kg8 {[%clk 0:02:42.8]} 46. Rf6 {[%clk 0:01:50.9]} 1-0

[Event "Live Chess"]
[Site "Chess.com"]
[Date "2023.05.20"]
[Round "-"]
[White "OleksiyJr1"]
[Black "SupremeTactician"]
[Result "0-1"]
[WhiteElo "962"]
[BlackElo "2377"]
[TimeControl "300"]
[EndTime "13:00:12 PDT"]
[Termination "SupremeTactician won by checkmate"]

1. e4 {[%clk 0:04:58.5]} 1... e5 {[%clk 0:04:53.3]} 2. Nf3 {[%clk 0:04:57.2]}
2... Nc6 {[%clk 0:04:52.7]} 3. Bc4 {[%clk 0:04:56.1]} 3... Bc5 {[%clk
0:04:51.3]} 4. d3 {[%clk 0:04:52.8]} 4... Nf6 {[%clk 0:04:50.1]} 5. Ng5 {[%clk
0:04:50.4]} 5... O-O {[%clk 0:04:48.7]} 6. Nc3 {[%clk 0:04:48.6]} 6... d6 {[%clk
0:04:47.4]} 7. O-O {[%clk 0:04:45.1]} 7... h6 {[%clk 0:04:45]} 8. Nf3 {[%clk
0:04:43.9]} 8... Bg4 {[%clk 0:04:43.1]} 9. h3 {[%clk 0:04:42.8]} 9... Bh5 {[%clk
0:04:38]} 10. Re1 {[%clk 0:04:36.1]} 10... Nd4 {[%clk 0:04:36.4]} 11. Re3 {[%clk
0:04:23.4]} 11... Nxf3+ {[%clk 0:04:34]} 12. Rxf3 {[%clk 0:04:22.6]} 12... Bxf3
{[%clk 0:04:32.5]} 13. Qxf3 {[%clk 0:04:22.5]} 13... c6 {[%clk 0:04:30.8]} 14.
Be3 {[%clk 0:04:17.5]} 14... Bxe3 {[%clk 0:04:29.1]} 15. Qxe3 {[%clk 0:04:17.4]}
15... a5 {[%clk 0:04:28.7]} 16. d4 {[%clk 0:04:15.8]} 16... exd4 {[%clk
0:04:25.3]} 17. Qxd4 {[%clk 0:04:15.7]} 17... b5 {[%clk 0:04:24.7]} 18. Bd3
{[%clk 0:04:13.6]} 18... c5 {[%clk 0:04:23.7]} 19. Qe3 {[%clk 0:04:08.1]} 19...
c4 {[%clk 0:04:22.9]} 20. Be2 {[%clk 0:04:06.2]} 20... b4 {[%clk 0:04:09]} 21.
Nd1 {[%clk 0:03:59]} 21... Re8 {[%clk 0:04:05.2]} 22. c3 {[%clk 0:03:57.5]}
22... Rxe4 {[%clk 0:04:02]} 23. Qf3 {[%clk 0:03:50.6]} 23... Qe7 {[%clk
0:03:44.2]} 24. Kf1 {[%clk 0:03:40.9]} 24... Re8 {[%clk 0:03:41.1]} 25. Ne3
{[%clk 0:03:37]} 25... d5 {[%clk 0:03:35.7]} 26. Re1 {[%clk 0:03:33.3]} 26...
bxc3 {[%clk 0:03:23.7]} 27. bxc3 {[%clk 0:03:07.3]} 27... Qa3 {[%clk 0:03:21.1]}
28. Ra1 {[%clk 0:03:00.1]} 28... Qxc3 {[%clk 0:03:17.9]} 29. Re1 {[%clk
0:02:46.3]} 29... d4 {[%clk 0:03:16]} 30. Ng4 {[%clk 0:02:44.1]} 30... Nxg4
{[%clk 0:03:11.5]} 31. hxg4 {[%clk 0:02:44]} 31... Qxf3 {[%clk 0:03:10.2]} 32.
gxf3 {[%clk 0:02:40]} 32... Rxe2 {[%clk 0:03:09.4]} 33. Rxe2 {[%clk 0:02:38.8]}
33... Rxe2 {[%clk 0:03:09.3]} 34. Kxe2 {[%clk 0:02:38.2]} 34... g6 {[%clk
0:03:08.8]} 35. Kd2 {[%clk 0:02:36.7]} 35... h5 {[%clk 0:03:08.2]} 36. gxh5
{[%clk 0:02:35.2]} 36... gxh5 {[%clk 0:03:08.1]} 37. Kc2 {[%clk 0:02:33.5]}
37... h4 {[%clk 0:03:08]} 38. Kb2 {[%clk 0:02:33]} 38... h3 {[%clk 0:03:07.4]}
39. Ka3 {[%clk 0:02:32.9]} 39... h2 {[%clk 0:03:07.3]} 40. Ka4 {[%clk
0:02:32.8]} 40... h1=Q {[%clk 0:03:07.2]} 41. Kxa5 {[%clk 0:02:32.7]} 41... Qa1
{[%clk 0:03:06.4]} 42. Kb5 {[%clk 0:02:32.6]} 42... Qxa2 {[%clk 0:03:05.8]} 43.
Kc5 {[%clk 0:02:31.7]} 43... Qxf2 {[%clk 0:03:05.7]} 44. Kxc4 {[%clk 0:02:30.7]}
44... Qxf3 {[%clk 0:03:05.3]} 45. Kxd4 {[%clk 0:02:30.6]} 45... Qf6+ {[%clk
0:03:03.6]} 46. Kd3 {[%clk 0:02:29.6]} 46... Qe6 {[%clk 0:03:02.9]} 47. Kd2
{[%clk 0:02:28.7]} 47... f5 {[%clk 0:03:02.8]} 48. Kd1 {[%clk 0:02:28.5]} 48...
f4 {[%clk 0:03:02.7]} 49. Kd2 {[%clk 0:02:27.7]} 49... f3 {[%clk 0:03:02.6]} 50.
Kc2 {[%clk 0:02:27.6]} 50... f2 {[%clk 0:03:02.5]} 51. Kb2 {[%clk 0:02:26.7]}
51... f1=Q {[%clk 0:03:01.6]} 52. Ka3 {[%clk 0:02:25.5]} 52... Qf3+ {[%clk
0:02:59.7]} 53. Ka4 {[%clk 0:02:24.5]} 53... Qfb3+ {[%clk 0:02:58]} 54. Ka5
{[%clk 0:02:23.7]} 54... Qeb6# {[%clk 0:02:57.8]} 0-1

[Event "Live Chess"]
[Site "Chess.com"]
[Date "2023.05.20"]
[Round "-"]
[White "birdseed45"]
[Black "NAZRIZ1977"]
[Result "1-0"]
[WhiteElo "1890"]
[BlackElo "2073"]
[TimeControl "300"]
[EndTime "13:00:12 PDT"]
[Termination "birdseed45 won by resignation"]

1. e4 {[%clk 0:04:57.5]} 1... c5 {[%clk 0:04:58.8]} 2. Nf3 {[%clk 0:04:55.3]}
2... d6 {[%clk 0:04:57.7]} 3. d4 {[%clk 0:04:54.6]} 3... cxd4 {[%clk 0:04:57.6]}
4. Nxd4 {[%clk 0:04:53.3]} 4... Nf6 {[%clk 0:04:57.1]} 5. Nc3 {[%clk 0:04:52.3]}
5... g6 {[%clk 0:04:57]} 6. Bg5 {[%clk 0:04:50.9]} 6... Bg7 {[%clk 0:04:56.2]}
7. Be2 {[%clk 0:04:49.8]} 7... O-O {[%clk 0:04:55.1]} 8. O-O {[%clk 0:04:49.1]}
8... Nc6 {[%clk 0:04:54.6]} 9. h3 {[%clk 0:04:46.7]} 9... Bd7 {[%clk 0:04:48.6]}
10. Nf3 {[%clk 0:04:44.5]} 10... Rc8 {[%clk 0:04:46.2]} 11. Re1 {[%clk
0:04:40.8]} 11... a6 {[%clk 0:04:45.1]} 12. a3 {[%clk 0:04:37.5]} 12... b5
{[%clk 0:04:44.3]} 13. Bd3 {[%clk 0:04:30]} 13... Na5 {[%clk 0:04:42.7]} 14. e5
{[%clk 0:04:26.8]} 14... dxe5 {[%clk 0:04:39.6]} 15. Nxe5 {[%clk 0:04:26.7]}
15... Be6 {[%clk 0:04:35.4]} 16. Qf3 {[%clk 0:04:13.9]} 16... h6 {[%clk
0:04:26.1]} 17. Bxf6 {[%clk 0:04:01.8]} 17... exf6 {[%clk 0:04:17.6]} 18. Nxg6
{[%clk 0:03:54.3]} 1-0